[Event "Titled Tuesday Blitz November 16 2021"]
[White "Nesterov, Arseniy"]
[Black "Atakishiyev, Elmar"]
[WhiteFideId "24198455"]
[BlackFideId "13410547"]
[WhiteElo "2489"]
[BlackElo "2088"]
[Result "1-0"]
[Round "03"]
[TimeControl "180+1"]
[Date "2021.11.16"]
[WhiteClock "0:00:04"]
[BlackClock "0:00:02"]

1. d4 {[%clk 0:03:00]}  Nf6 {[%clk 0:03:00]} 2. c4 {[%clk 0:03:00]}  g6 {[%clk 0:02:59]} 3. Nc3 {[%clk 0:03:01]}  Bg7 {[%clk 0:03:00]} 4. e4 {[%clk 0:03:01]}  d6 {[%clk 0:03:00]} 5. Be2 {[%clk 0:03:02]}  O-O {[%clk 0:03:00]} 6. Be3 {[%clk 0:03:02]}  e5 {[%clk 0:02:59]} 7. d5 {[%clk 0:03:03]}  Na6 {[%clk 0:02:57]} 8. g4 {[%clk 0:03:02]}  Nc5 {[%clk 0:02:56]} 9. f3 {[%clk 0:03:03]}  h5 {[%clk 0:02:57]} 10. g5 {[%clk 0:03:03]}  Nh7 {[%clk 0:02:56]} 11. h4 {[%clk 0:03:04]}  a5 {[%clk 0:02:56]} 12. Qd2 {[%clk 0:03:03]}  f6 {[%clk 0:02:54]} 13. gxf6 {[%clk 0:03:04]}  Rxf6 {[%clk 0:02:55]} 14. O-O-O {[%clk 0:03:02]}  Bd7 {[%clk 0:02:51]} 15. Nh3 {[%clk 0:02:59]}  Qf8 {[%clk 0:02:50]} 16. Rdg1 {[%clk 0:02:51]}  a4 {[%clk 0:02:46]} 17. Rg3 {[%clk 0:02:35]}  Qf7 {[%clk 0:02:24]} 18. Ng5 {[%clk 0:02:27]}  Nxg5 {[%clk 0:02:24]} 19. Bxg5 {[%clk 0:02:28]}  Rf4 {[%clk 0:02:24]} 20. Rhg1 {[%clk 0:02:28]}  Kh7 {[%clk 0:01:58]} 21. Bxf4 {[%clk 0:02:23]}  exf4 {[%clk 0:01:59]} 22. Rxg6 {[%clk 0:02:23]}  Qxg6 {[%clk 0:01:26]} 23. Rxg6 {[%clk 0:02:24]}  Kxg6 {[%clk 0:01:27]} 24. Bf1 {[%clk 0:01:57]}  Bf6 {[%clk 0:01:08]} 25. Kc2 {[%clk 0:01:36]}  Be5 {[%clk 0:00:45]} 26. Qg2+ {[%clk 0:01:22]}  Kf7 {[%clk 0:00:45]} 27. Qg5 {[%clk 0:01:22]}  Rg8 {[%clk 0:00:36]} 28. Qxh5+ {[%clk 0:01:22]}  Ke7 {[%clk 0:00:36]} 29. Ne2 {[%clk 0:01:12]}  b5 {[%clk 0:00:29]} 30. cxb5 {[%clk 0:00:45]}  a3 {[%clk 0:00:28]} 31. b4 {[%clk 0:00:40]}  Na4 {[%clk 0:00:25]} 32. Qh7+ {[%clk 0:00:25]}  Rg7 {[%clk 0:00:25]} 33. Qh6 {[%clk 0:00:25]}  Rf7 {[%clk 0:00:22]} 34. Qg5+ {[%clk 0:00:23]}  Bf6 {[%clk 0:00:20]} 35. Qxf4 {[%clk 0:00:20]}  Bxb5 {[%clk 0:00:20]} 36. Qe3 {[%clk 0:00:19]}  Nb6 {[%clk 0:00:19]} 37. Ng3 {[%clk 0:00:18]}  Ba4+ {[%clk 0:00:15]} 38. Kd2 {[%clk 0:00:14]}  Bd7 {[%clk 0:00:14]} 39. h5 {[%clk 0:00:10]}  Be5 {[%clk 0:00:10]} 40. Nf5+ {[%clk 0:00:07]}  Bxf5 {[%clk 0:00:08]} 41. exf5 {[%clk 0:00:08]}  Rf6 {[%clk 0:00:09]} 42. Qg5 {[%clk 0:00:06]}  Nxd5 {[%clk 0:00:06]} 43. Kc2 {[%clk 0:00:06]}  Bf4 {[%clk 0:00:05]} 44. Qg7+ {[%clk 0:00:05]}  Rf7 {[%clk 0:00:06]} 45. Qg6 {[%clk 0:00:04]}  Ne3+ {[%clk 0:00:06]} 46. Kb3 {[%clk 0:00:04]}  Nxf1 {[%clk 0:00:06]} 47. Qe6+ {[%clk 0:00:03]}  Kf8 {[%clk 0:00:07]} 48. f6 {[%clk 0:00:04]}  Nd2+ {[%clk 0:00:06]} 49. Ka4 {[%clk 0:00:04]}  Kg8 {[%clk 0:00:02]} 50. Qe8+ {[%clk 0:00:04]}  Rf8 {[%clk 0:00:02]} 51. Qg6+ {[%clk 0:00:04]} 1-0


[Site "https://www.chess.com"]

[Event "Titled Tuesday Blitz November 16 2021"]
[White "Ozen, Bahadir"]
[Black "Golubev, Mikhail"]
[WhiteFideId "6337058"]
[BlackFideId "14100983"]
[WhiteElo "2503"]
[BlackElo "2374"]
[Result "1-0"]
[Round "03"]
[TimeControl "180+1"]
[Date "2021.11.16"]
[WhiteClock "0:00:26"]
[BlackClock "0:00:02"]

1. Nf3 {[%clk 0:03:00]}  d6 {[%clk 0:02:58]} 2. d4 {[%clk 0:03:00]}  Nf6 {[%clk 0:02:59]} 3. Bg5 {[%clk 0:03:00]}  Nbd7 {[%clk 0:02:57]} 4. e3 {[%clk 0:02:58]}  g6 {[%clk 0:02:51]} 5. Be2 {[%clk 0:02:58]}  Bg7 {[%clk 0:02:51]} 6. O-O {[%clk 0:02:58]}  O-O {[%clk 0:02:47]} 7. a4 {[%clk 0:02:55]}  a5 {[%clk 0:02:43]} 8. Na3 {[%clk 0:02:46]}  c6 {[%clk 0:02:38]} 9. c3 {[%clk 0:02:45]}  Re8 {[%clk 0:02:31]} 10. Bh4 {[%clk 0:02:34]}  Nf8 {[%clk 0:02:22]} 11. Nc4 {[%clk 0:02:25]}  Be6 {[%clk 0:02:13]} 12. Ng5 {[%clk 0:02:21]}  Bd7 {[%clk 0:02:08]} 13. Qb3 {[%clk 0:02:20]}  Nd5 {[%clk 0:01:03]} 14. Nxf7 {[%clk 0:01:39]}  Kxf7 {[%clk 0:00:57]} 15. e4 {[%clk 0:01:39]}  g5 {[%clk 0:00:19]} 16. Bh5+ {[%clk 0:01:35]}  Kg8 {[%clk 0:00:15]} 17. exd5 {[%clk 0:01:20]}  gxh4 {[%clk 0:00:13]} 18. Nb6 {[%clk 0:01:19]}  Kh8 {[%clk 0:00:11]} 19. Nxa8 {[%clk 0:01:16]}  Qxa8 {[%clk 0:00:12]} 20. Bxe8 {[%clk 0:01:16]}  Bxe8 {[%clk 0:00:10]} 21. dxc6 {[%clk 0:01:15]}  bxc6 {[%clk 0:00:10]} 22. Rae1 {[%clk 0:01:15]}  Ng6 {[%clk 0:00:10]} 23. Qe6 {[%clk 0:01:12]}  Bf6 {[%clk 0:00:09]} 24. f4 {[%clk 0:01:12]}  Kg7 {[%clk 0:00:08]} 25. Qg4 {[%clk 0:01:09]}  Kh8 {[%clk 0:00:07]} 26. f5 {[%clk 0:01:09]}  Nf8 {[%clk 0:00:07]} 27. Rf2 {[%clk 0:01:07]}  Qb8 {[%clk 0:00:07]} 28. Rfe2 {[%clk 0:01:07]}  Qc7 {[%clk 0:00:04]} 29. Kh1 {[%clk 0:01:01]}  Bf7 {[%clk 0:00:03]} 30. b4 {[%clk 0:00:58]}  Bg8 {[%clk 0:00:03]} 31. bxa5 {[%clk 0:00:56]}  Qxa5 {[%clk 0:00:03]} 32. Rxe7 {[%clk 0:00:55]}  Qxc3 {[%clk 0:00:03]} 33. Re8 {[%clk 0:00:51]}  c5 {[%clk 0:00:01]} 34. dxc5 {[%clk 0:00:49]}  dxc5 {[%clk 0:00:02]} 35. Rd1 {[%clk 0:00:36]}  Bg7 {[%clk 0:00:02]} 36. Rf1 {[%clk 0:00:30]}  Bf7 {[%clk 0:00:02]} 37. f6 {[%clk 0:00:26]}  Bxe8 {[%clk 0:00:02]} 1-0


[Site "https://www.chess.com"]

[Event "Titled Tuesday Blitz November 16 2021"]
[White "Perez Ponsa, Federico"]
[Black "Papasimakopoulos, Alexandros"]
[WhiteFideId "117927"]
[BlackFideId "4244125"]
[WhiteElo "2672"]
[BlackElo "2394"]
[Result "1-0"]
[Round "03"]
[TimeControl "180+1"]
[Date "2021.11.16"]
[WhiteClock "0:00:07"]
[BlackClock "0:00:20"]

1. e4 {[%clk 0:03:00]}  e6 {[%clk 0:03:00]} 2. d4 {[%clk 0:03:00]}  d5 {[%clk 0:03:00]} 3. e5 {[%clk 0:03:01]}  b6 {[%clk 0:03:00]} 4. c3 {[%clk 0:03:01]}  Qd7 {[%clk 0:03:00]} 5. Nh3 {[%clk 0:03:00]}  Ne7 {[%clk 0:03:01]} 6. Nf4 {[%clk 0:03:00]}  Nf5 {[%clk 0:03:01]} 7. h4 {[%clk 0:02:59]}  Ba6 {[%clk 0:03:01]} 8. g4 {[%clk 0:02:58]}  Bxf1 {[%clk 0:02:58]} 9. gxf5 {[%clk 0:02:49]}  Ba6 {[%clk 0:02:59]} 10. fxe6 {[%clk 0:02:49]}  fxe6 {[%clk 0:03:00]} 11. Qg4 {[%clk 0:02:50]}  Bc8 {[%clk 0:02:40]} 12. Rg1 {[%clk 0:02:46]}  Nc6 {[%clk 0:02:40]} 13. Nh5 {[%clk 0:02:45]}  Qf7 {[%clk 0:02:31]} 14. Nxg7+ {[%clk 0:02:42]}  Bxg7 {[%clk 0:02:20]} 15. Qxg7 {[%clk 0:02:41]}  Rf8 {[%clk 0:02:17]} 16. Qxf7+ {[%clk 0:02:39]}  Rxf7 {[%clk 0:02:18]} 17. Bg5 {[%clk 0:02:35]}  Kd7 {[%clk 0:02:18]} 18. Nd2 {[%clk 0:02:31]}  Ba6 {[%clk 0:02:18]} 19. O-O-O {[%clk 0:02:29]}  Rxf2 {[%clk 0:02:05]} 20. Bf6 {[%clk 0:02:29]}  Bd3 {[%clk 0:02:05]} 21. Rg7+ {[%clk 0:02:28]}  Kc8 {[%clk 0:02:05]} 22. Rdg1 {[%clk 0:02:21]}  Kb7 {[%clk 0:02:03]} 23. R7g2 {[%clk 0:02:12]}  Rxg2 {[%clk 0:01:58]} 24. Rxg2 {[%clk 0:02:13]}  Bg6 {[%clk 0:01:58]} 25. Nf1 {[%clk 0:02:11]}  Re8 {[%clk 0:01:51]} 26. Rg5 {[%clk 0:02:10]}  Ne7 {[%clk 0:01:49]} 27. h5 {[%clk 0:02:10]}  Bd3 {[%clk 0:01:48]} 28. Ne3 {[%clk 0:01:57]}  Nf5 {[%clk 0:01:48]} 29. Ng2 {[%clk 0:01:57]}  Be4 {[%clk 0:01:33]} 30. Nf4 {[%clk 0:01:57]}  Ne3 {[%clk 0:01:34]} 31. Rg7 {[%clk 0:01:53]}  Bf5 {[%clk 0:01:33]} 32. b3 {[%clk 0:01:50]}  a5 {[%clk 0:01:32]} 33. Kd2 {[%clk 0:01:50]}  Ng4 {[%clk 0:01:29]} 34. c4 {[%clk 0:01:33]}  dxc4 {[%clk 0:01:24]} 35. bxc4 {[%clk 0:01:34]}  Rf8 {[%clk 0:01:11]} 36. Be7 {[%clk 0:01:24]}  Rc8 {[%clk 0:01:11]} 37. Kc3 {[%clk 0:01:17]}  Ka6 {[%clk 0:00:58]} 38. a4 {[%clk 0:01:16]}  Kb7 {[%clk 0:00:57]} 39. Bh4 {[%clk 0:01:10]}  Rf8 {[%clk 0:00:51]} 40. Be7 {[%clk 0:00:54]}  Rc8 {[%clk 0:00:51]} 41. Rf7 {[%clk 0:00:50]}  Kb8 {[%clk 0:00:30]} 42. Ba3 {[%clk 0:00:43]}  Nh6 {[%clk 0:00:25]} 43. Re7 {[%clk 0:00:35]}  Ng4 {[%clk 0:00:26]} 44. Nxe6 {[%clk 0:00:33]}  Bxe6 {[%clk 0:00:20]} 45. Rxe6 {[%clk 0:00:34]}  Rg8 {[%clk 0:00:20]} 46. Re7 {[%clk 0:00:30]}  h6 {[%clk 0:00:20]} 47. e6 {[%clk 0:00:30]}  Ne3 {[%clk 0:00:19]} 48. Rf7 {[%clk 0:00:29]}  Re8 {[%clk 0:00:19]} 49. e7 {[%clk 0:00:28]}  Kc8 {[%clk 0:00:19]} 50. Rf6 {[%clk 0:00:23]}  Kd7 {[%clk 0:00:19]} 51. Rxh6 {[%clk 0:00:22]}  Nf5 {[%clk 0:00:19]} 52. Rf6 {[%clk 0:00:22]}  Ng7 {[%clk 0:00:19]} 53. h6 {[%clk 0:00:22]}  Ne6 {[%clk 0:00:20]} 54. h7 {[%clk 0:00:21]}  Ng5 {[%clk 0:00:20]} 55. Rh6 {[%clk 0:00:16]}  Rh8 {[%clk 0:00:21]} 56. Bc1 {[%clk 0:00:09]}  Ne4+ {[%clk 0:00:19]} 57. Kd3 {[%clk 0:00:08]}  Nf2+ {[%clk 0:00:20]} 58. Kc2 {[%clk 0:00:06]}  Kxe7 {[%clk 0:00:19]} 59. Bg5+ {[%clk 0:00:05]}  Kf7 {[%clk 0:00:19]} 60. Bf6 {[%clk 0:00:06]}  Ng4 {[%clk 0:00:20]} 61. Bxh8 {[%clk 0:00:06]}  Nxh6 {[%clk 0:00:20]} 62. Be5 {[%clk 0:00:07]}  Ng4 {[%clk 0:00:20]} 63. h8=Q {[%clk 0:00:07]} 1-0


[Site "https://www.chess.com"]

[Event "Titled Tuesday Blitz November 16 2021"]
[White "Samunenkov, Ihor"]
[Black "Andreikin, Dmitry"]
[WhiteFideId "14187086"]
[BlackFideId "4158814"]
[WhiteElo "2348"]
[BlackElo "2736"]
[Result "0-1"]
[Round "03"]
[TimeControl "180+1"]
[Date "2021.11.16"]
[WhiteClock "0:00:06"]
[BlackClock "0:01:01"]

1. d4 {[%clk 0:03:00]}  Nf6 {[%clk 0:02:59]} 2. c4 {[%clk 0:03:01]}  e6 {[%clk 0:02:58]} 3. Nf3 {[%clk 0:03:01]}  b6 {[%clk 0:02:58]} 4. g3 {[%clk 0:03:01]}  Bb7 {[%clk 0:02:58]} 5. Bg2 {[%clk 0:03:01]}  Bb4+ {[%clk 0:02:57]} 6. Bd2 {[%clk 0:02:56]}  a5 {[%clk 0:02:57]} 7. O-O {[%clk 0:02:55]}  O-O {[%clk 0:02:57]} 8. a3 {[%clk 0:02:52]}  Bxd2 {[%clk 0:02:57]} 9. Nbxd2 {[%clk 0:02:52]}  a4 {[%clk 0:02:56]} 10. Rc1 {[%clk 0:02:49]}  d6 {[%clk 0:02:56]} 11. Nb1 {[%clk 0:02:41]}  Ra5 {[%clk 0:02:43]} 12. Nc3 {[%clk 0:02:38]}  Qe8 {[%clk 0:02:43]} 13. Qc2 {[%clk 0:02:11]}  Nc6 {[%clk 0:02:32]} 14. Rfd1 {[%clk 0:02:03]}  Ne7 {[%clk 0:02:31]} 15. e3 {[%clk 0:01:55]}  Qa8 {[%clk 0:02:30]} 16. Ne1 {[%clk 0:01:53]}  Bxg2 {[%clk 0:02:23]} 17. Nxg2 {[%clk 0:01:54]}  Ng6 {[%clk 0:02:23]} 18. Qe2 {[%clk 0:01:45]}  h5 {[%clk 0:02:20]} 19. h4 {[%clk 0:01:40]}  Re8 {[%clk 0:02:10]} 20. e4 {[%clk 0:01:28]}  e5 {[%clk 0:02:10]} 21. d5 {[%clk 0:01:26]}  Nf8 {[%clk 0:02:10]} 22. Ne3 {[%clk 0:01:26]}  N8d7 {[%clk 0:02:10]} 23. Nf1 {[%clk 0:01:19]}  Nc5 {[%clk 0:02:09]} 24. Nd2 {[%clk 0:01:19]}  Qc8 {[%clk 0:02:07]} 25. f3 {[%clk 0:01:16]}  Qh3 {[%clk 0:02:04]} 26. Qg2 {[%clk 0:01:08]}  Qxg2+ {[%clk 0:02:04]} 27. Kxg2 {[%clk 0:01:09]}  Kf8 {[%clk 0:02:03]} 28. Kf1 {[%clk 0:01:06]}  Ke7 {[%clk 0:02:01]} 29. Ke2 {[%clk 0:01:06]}  Kd7 {[%clk 0:02:01]} 30. Rc2 {[%clk 0:01:06]}  Raa8 {[%clk 0:02:01]} 31. Nb5 {[%clk 0:01:03]}  Rg8 {[%clk 0:02:00]} 32. Rh1 {[%clk 0:00:47]}  g5 {[%clk 0:01:59]} 33. hxg5 {[%clk 0:00:48]}  Rxg5 {[%clk 0:01:59]} 34. Nf1 {[%clk 0:00:49]}  Rag8 {[%clk 0:01:53]} 35. Rc3 {[%clk 0:00:48]}  Nh7 {[%clk 0:01:51]} 36. Re3 {[%clk 0:00:42]}  f5 {[%clk 0:01:46]} 37. exf5 {[%clk 0:00:40]}  Nf6 {[%clk 0:01:46]} 38. Nc3 {[%clk 0:00:40]}  Rxf5 {[%clk 0:01:45]} 39. Rh4 {[%clk 0:00:37]}  Rf8 {[%clk 0:01:41]} 40. Nd2 {[%clk 0:00:35]}  Rg5 {[%clk 0:01:35]} 41. Nf1 {[%clk 0:00:36]}  Ne8 {[%clk 0:01:31]} 42. Kf2 {[%clk 0:00:34]}  Ng7 {[%clk 0:01:29]} 43. f4 {[%clk 0:00:27]}  Rg6 {[%clk 0:01:24]} 44. Ne4 {[%clk 0:00:14]}  Nf5 {[%clk 0:01:23]} 45. Nxc5+ {[%clk 0:00:14]}  bxc5 {[%clk 0:01:22]} 46. Rxh5 {[%clk 0:00:14]}  Nxe3 {[%clk 0:01:20]} 47. Kxe3 {[%clk 0:00:15]}  exf4+ {[%clk 0:01:19]} 48. gxf4 {[%clk 0:00:16]}  Rg2 {[%clk 0:01:16]} 49. Nd2 {[%clk 0:00:15]}  Re8+ {[%clk 0:01:12]} 50. Kd3 {[%clk 0:00:13]}  Rg3+ {[%clk 0:01:12]} 51. Kc2 {[%clk 0:00:13]}  Re2 {[%clk 0:01:13]} 52. Rh7+ {[%clk 0:00:13]}  Kc8 {[%clk 0:01:12]} 53. Rh8+ {[%clk 0:00:08]}  Kb7 {[%clk 0:01:13]} 54. Rh1 {[%clk 0:00:08]}  Rf2 {[%clk 0:01:10]} 55. Re1 {[%clk 0:00:06]}  Rgg2 {[%clk 0:01:08]} 56. Rd1 {[%clk 0:00:07]}  Rxf4 {[%clk 0:01:08]} 57. Kc3 {[%clk 0:00:07]}  Rg3+ {[%clk 0:01:08]} 58. Kc2 {[%clk 0:00:08]}  Rf2 {[%clk 0:01:08]} 59. Re1 {[%clk 0:00:07]}  Rgg2 {[%clk 0:01:07]} 60. Rd1 {[%clk 0:00:07]}  Rf4 {[%clk 0:01:02]} 61. Kc3 {[%clk 0:00:06]}  Rd4 {[%clk 0:01:01]} 62. Kc2 {[%clk 0:00:06]}  Rxc4+ {[%clk 0:01:01]} 0-1


[Site "https://www.chess.com"]

[Event "Titled Tuesday Blitz November 16 2021"]
[White "Shipov, Sergei"]
[Black "Gegenfurtner, Juergen"]
[WhiteFideId "4113624"]
[BlackFideId "24632147"]
[WhiteElo "2794"]
[BlackElo "2398"]
[Result "1/2-1/2"]
[Round "03"]
[TimeControl "180+1"]
[Date "2021.11.16"]
[WhiteClock "0:00:20"]
[BlackClock "0:00:17"]

1. d4 {[%clk 0:03:00]}  d5 {[%clk 0:02:56]} 2. c4 {[%clk 0:03:00]}  e6 {[%clk 0:02:56]} 3. Nc3 {[%clk 0:03:00]}  Nf6 {[%clk 0:02:56]} 4. cxd5 {[%clk 0:03:00]}  exd5 {[%clk 0:02:57]} 5. Bg5 {[%clk 0:03:00]}  Nbd7 {[%clk 0:02:56]} 6. e3 {[%clk 0:03:00]}  c6 {[%clk 0:02:57]} 7. Bd3 {[%clk 0:02:59]}  Be7 {[%clk 0:02:58]} 8. Qc2 {[%clk 0:03:00]}  Nh5 {[%clk 0:02:58]} 9. Bxe7 {[%clk 0:03:00]}  Qxe7 {[%clk 0:02:59]} 10. Nge2 {[%clk 0:03:00]}  Nb6 {[%clk 0:02:59]} 11. O-O {[%clk 0:03:00]}  g6 {[%clk 0:02:57]} 12. Rae1 {[%clk 0:03:00]}  O-O {[%clk 0:02:57]} 13. Nc1 {[%clk 0:02:57]}  Be6 {[%clk 0:02:53]} 14. Nb3 {[%clk 0:02:53]}  Rad8 {[%clk 0:02:45]} 15. f3 {[%clk 0:02:52]}  Nf6 {[%clk 0:02:38]} 16. Kh1 {[%clk 0:02:50]}  Rfe8 {[%clk 0:02:38]} 17. Qf2 {[%clk 0:02:42]}  Qd6 {[%clk 0:02:36]} 18. Nc5 {[%clk 0:02:37]}  Bc8 {[%clk 0:02:35]} 19. b4 {[%clk 0:02:36]}  Nbd7 {[%clk 0:02:24]} 20. h3 {[%clk 0:02:28]}  b6 {[%clk 0:02:16]} 21. Nxd7 {[%clk 0:02:25]}  Bxd7 {[%clk 0:02:17]} 22. a3 {[%clk 0:02:24]}  Re7 {[%clk 0:02:11]} 23. e4 {[%clk 0:02:23]}  dxe4 {[%clk 0:02:07]} 24. fxe4 {[%clk 0:02:23]}  Nh5 {[%clk 0:02:00]} 25. e5 {[%clk 0:02:21]}  Qc7 {[%clk 0:01:57]} 26. Ne4 {[%clk 0:02:10]}  Bf5 {[%clk 0:01:55]} 27. g4 {[%clk 0:02:03]}  Bxe4+ {[%clk 0:01:54]} 28. Bxe4 {[%clk 0:02:03]}  Ng7 {[%clk 0:01:52]} 29. Rc1 {[%clk 0:01:51]}  Qd7 {[%clk 0:01:46]} 30. Rfd1 {[%clk 0:01:50]}  Rc8 {[%clk 0:01:38]} 31. Qg2 {[%clk 0:01:45]}  Re6 {[%clk 0:01:36]} 32. b5 {[%clk 0:01:44]}  cxb5 {[%clk 0:01:33]} 33. Bd5 {[%clk 0:01:31]}  Rxc1 {[%clk 0:01:26]} 34. Rxc1 {[%clk 0:01:30]}  Re7 {[%clk 0:01:27]} 35. Qe4 {[%clk 0:01:21]}  Ne6 {[%clk 0:01:27]} 36. h4 {[%clk 0:01:21]}  h6 {[%clk 0:01:19]} 37. Rc6 {[%clk 0:01:17]}  h5 {[%clk 0:01:00]} 38. gxh5 {[%clk 0:01:11]}  gxh5 {[%clk 0:01:00]} 39. Kh2 {[%clk 0:01:11]}  Re8 {[%clk 0:00:53]} 40. Rd6 {[%clk 0:01:05]}  Qe7 {[%clk 0:00:50]} 41. Bxe6 {[%clk 0:00:59]}  fxe6 {[%clk 0:00:50]} 42. Qg6+ {[%clk 0:01:00]}  Kh8 {[%clk 0:00:50]} 43. Qxh5+ {[%clk 0:00:59]}  Kg7 {[%clk 0:00:50]} 44. d5 {[%clk 0:00:56]}  Rh8 {[%clk 0:00:47]} 45. Qg4+ {[%clk 0:00:51]}  Kf8 {[%clk 0:00:48]} 46. Kh3 {[%clk 0:00:44]}  Rh6 {[%clk 0:00:22]} 47. dxe6 {[%clk 0:00:33]}  a5 {[%clk 0:00:14]} 48. Rc6 {[%clk 0:00:32]}  Qxa3+ {[%clk 0:00:14]} 49. Kh2 {[%clk 0:00:19]}  Qb2+ {[%clk 0:00:14]} 50. Kg3 {[%clk 0:00:19]}  Qxe5+ {[%clk 0:00:14]} 51. Qf4+ {[%clk 0:00:19]}  Qxf4+ {[%clk 0:00:14]} 52. Kxf4 {[%clk 0:00:19]}  Ke7 {[%clk 0:00:14]} 53. Rxb6 {[%clk 0:00:18]}  Rxe6 {[%clk 0:00:13]} 54. Rxb5 {[%clk 0:00:19]}  Ra6 {[%clk 0:00:13]} 55. Rb1 {[%clk 0:00:18]}  Kf6 {[%clk 0:00:13]} 56. Ke4 {[%clk 0:00:18]}  Kg6 {[%clk 0:00:13]} 57. Kd5 {[%clk 0:00:18]}  a4 {[%clk 0:00:14]} 58. Kc4 {[%clk 0:00:18]}  a3 {[%clk 0:00:14]} 59. Ra1 {[%clk 0:00:18]}  a2 {[%clk 0:00:15]} 60. Kb3 {[%clk 0:00:19]}  Kh5 {[%clk 0:00:15]} 61. Rxa2 {[%clk 0:00:19]}  Rxa2 {[%clk 0:00:16]} 62. Kxa2 {[%clk 0:00:20]}  Kxh4 {[%clk 0:00:17]} 1/2-1/2


[Site "https://www.chess.com"]

[Event "Titled Tuesday Blitz November 16 2021"]
[White "Shubenkova, Veronika"]
[Black "Costachi, Mihnea"]
[WhiteFideId "44124040"]
[BlackFideId "1217518"]
[WhiteElo "1938"]
[BlackElo "2482"]
[Result "0-1"]
[Round "03"]
[TimeControl "180+1"]
[Date "2021.11.16"]
[WhiteClock "0:01:14"]
[BlackClock "0:01:40"]

1. e4 {[%clk 0:03:00]}  e5 {[%clk 0:02:59]} 2. Nf3 {[%clk 0:03:00]}  Nc6 {[%clk 0:03:00]} 3. Bb5 {[%clk 0:03:00]}  a6 {[%clk 0:03:00]} 4. Bxc6 {[%clk 0:03:00]}  dxc6 {[%clk 0:03:00]} 5. O-O {[%clk 0:03:01]}  Bg4 {[%clk 0:03:01]} 6. d3 {[%clk 0:03:00]}  Qf6 {[%clk 0:03:00]} 7. Be3 {[%clk 0:02:56]}  Bxf3 {[%clk 0:02:55]} 8. Qxf3 {[%clk 0:02:56]}  Qxf3 {[%clk 0:02:55]} 9. gxf3 {[%clk 0:02:56]}  Bd6 {[%clk 0:02:56]} 10. Nd2 {[%clk 0:02:55]}  Ne7 {[%clk 0:02:56]} 11. Nc4 {[%clk 0:02:55]}  g5 {[%clk 0:02:56]} 12. Kh1 {[%clk 0:02:52]}  f6 {[%clk 0:02:56]} 13. Rg1 {[%clk 0:02:51]}  Ng6 {[%clk 0:02:57]} 14. Bd2 {[%clk 0:02:41]}  Bc5 {[%clk 0:02:55]} 15. Ne3 {[%clk 0:02:28]}  Bxe3 {[%clk 0:02:54]} 16. fxe3 {[%clk 0:02:27]}  Ke7 {[%clk 0:02:51]} 17. Raf1 {[%clk 0:02:25]}  Rhg8 {[%clk 0:02:49]} 18. f4 {[%clk 0:02:25]}  gxf4 {[%clk 0:02:49]} 19. exf4 {[%clk 0:02:25]}  Nxf4 {[%clk 0:02:50]} 20. Rxg8 {[%clk 0:02:23]}  Rxg8 {[%clk 0:02:49]} 21. Bxf4 {[%clk 0:02:23]}  exf4 {[%clk 0:02:50]} 22. Rxf4 {[%clk 0:02:22]}  Ke6 {[%clk 0:02:50]} 23. Rh4 {[%clk 0:02:19]}  Rg7 {[%clk 0:02:50]} 24. c3 {[%clk 0:02:10]}  c5 {[%clk 0:02:49]} 25. Rh5 {[%clk 0:02:09]}  b6 {[%clk 0:02:45]} 26. Rd5 {[%clk 0:02:05]}  a5 {[%clk 0:02:42]} 27. Rd8 {[%clk 0:02:01]}  Ke5 {[%clk 0:02:40]} 28. Rf8 {[%clk 0:01:54]}  Rd7 {[%clk 0:02:35]} 29. Re8+ {[%clk 0:01:52]}  Kf4 {[%clk 0:02:35]} 30. Rf8 {[%clk 0:01:52]}  Rxd3 {[%clk 0:02:35]} 31. Rxf6+ {[%clk 0:01:51]}  Kxe4 {[%clk 0:02:35]} 32. Rf7 {[%clk 0:01:51]}  Rd2 {[%clk 0:02:34]} 33. Rxc7 {[%clk 0:01:50]}  Rxb2 {[%clk 0:02:33]} 34. Rxh7 {[%clk 0:01:49]}  Rxa2 {[%clk 0:02:34]} 35. Rb7 {[%clk 0:01:46]}  Rb2 {[%clk 0:02:26]} 36. h4 {[%clk 0:01:45]}  Kf5 {[%clk 0:02:26]} 37. Rg7 {[%clk 0:01:44]}  Rc2 {[%clk 0:02:23]} 38. h5 {[%clk 0:01:41]}  Rxc3 {[%clk 0:02:22]} 39. Kg2 {[%clk 0:01:41]}  Rd3 {[%clk 0:02:12]} 40. h6 {[%clk 0:01:40]}  Rd6 {[%clk 0:02:12]} 41. h7 {[%clk 0:01:39]}  Rh6 {[%clk 0:02:12]} 42. Rb7 {[%clk 0:01:36]}  Ke4 {[%clk 0:01:55]} 43. Rxb6 {[%clk 0:01:34]}  Rxh7 {[%clk 0:01:54]} 44. Rb5 {[%clk 0:01:34]}  c4 {[%clk 0:01:44]} 45. Rxa5 {[%clk 0:01:34]}  Rf7 {[%clk 0:01:43]} 46. Rc5 {[%clk 0:01:30]}  Kd3 {[%clk 0:01:42]} 47. Rc8 {[%clk 0:01:30]}  c3 {[%clk 0:01:42]} 48. Rd8+ {[%clk 0:01:29]}  Ke2 {[%clk 0:01:42]} 49. Re8+ {[%clk 0:01:29]}  Kd2 {[%clk 0:01:42]} 50. Rd8+ {[%clk 0:01:29]}  Kc1 {[%clk 0:01:42]} 51. Rc8 {[%clk 0:01:26]}  c2 {[%clk 0:01:42]} 52. Kg3 {[%clk 0:01:25]}  Rb7 {[%clk 0:01:41]} 53. Kf3 {[%clk 0:01:15]}  Kb2 {[%clk 0:01:41]} 54. Ke2 {[%clk 0:01:14]}  c1=Q {[%clk 0:01:40]} 0-1


[Site "https://www.chess.com"]